[Event "Titled Tuesday Blitz April 19 Late 2022"]
[White "Nozdrachev, Leonid"]
[Black "Vujic, Mihailo"]
[WhiteFideId "24113433"]
[BlackFideId "918873"]
[WhiteElo "2494"]
[BlackElo "2388"]
[Result "1-0"]
[Round "11"]
[TimeControl "180+1"]
[Date "2022.04.19"]
[WhiteClock "0:00:12"]
[BlackClock "0:00:04"]

1. e4 {[%clk 0:02:58]}  e5 {[%clk 0:02:59]} 2. Nf3 {[%clk 0:02:54]}  Nc6 {[%clk 0:03:00]} 3. c3 {[%clk 0:02:53]}  d5 {[%clk 0:02:59]} 4. Qa4 {[%clk 0:02:51]}  Bd7 {[%clk 0:02:59]} 5. exd5 {[%clk 0:02:50]}  Nd4 {[%clk 0:03:00]} 6. Qd1 {[%clk 0:02:50]}  Nxf3+ {[%clk 0:03:01]} 7. Qxf3 {[%clk 0:02:50]}  Nf6 {[%clk 0:03:02]} 8. a4 {[%clk 0:02:41]}  e4 {[%clk 0:03:02]} 9. Qd1 {[%clk 0:02:38]}  Nxd5 {[%clk 0:02:57]} 10. Qb3 {[%clk 0:02:36]}  Bc6 {[%clk 0:02:53]} 11. Bb5 {[%clk 0:02:35]}  Bc5 {[%clk 0:02:37]} 12. d4 {[%clk 0:02:31]}  exd3 {[%clk 0:02:34]} 13. O-O {[%clk 0:02:31]}  O-O {[%clk 0:02:31]} 14. Bxc6 {[%clk 0:02:29]}  bxc6 {[%clk 0:02:30]} 15. Qc4 {[%clk 0:02:29]}  Bd6 {[%clk 0:02:18]} 16. Qxd3 {[%clk 0:02:24]}  Qh4 {[%clk 0:02:17]} 17. g3 {[%clk 0:02:21]}  Qh3 {[%clk 0:02:16]} 18. Qf3 {[%clk 0:02:14]}  Rae8 {[%clk 0:02:12]} 19. Nd2 {[%clk 0:02:08]}  f5 {[%clk 0:02:05]} 20. Nc4 {[%clk 0:02:07]}  f4 {[%clk 0:01:53]} 21. Qg2 {[%clk 0:01:54]}  Qh5 {[%clk 0:01:50]} 22. Nxd6 {[%clk 0:01:51]}  f3 {[%clk 0:01:40]} 23. Qh1 {[%clk 0:01:40]}  cxd6 {[%clk 0:01:39]} 24. c4 {[%clk 0:01:34]}  Nf4 {[%clk 0:01:37]} 25. Bxf4 {[%clk 0:01:30]}  Rxf4 {[%clk 0:01:36]} 26. Ra3 {[%clk 0:01:28]}  Rf6 {[%clk 0:01:11]} 27. Rd3 {[%clk 0:01:20]}  Ref8 {[%clk 0:01:05]} 28. Rfd1 {[%clk 0:01:11]}  Qe5 {[%clk 0:01:02]} 29. b3 {[%clk 0:01:05]}  Qe2 {[%clk 0:01:00]} 30. h4 {[%clk 0:01:00]}  Re6 {[%clk 0:00:58]} 31. Qh3 {[%clk 0:00:59]}  h5 {[%clk 0:00:46]} 32. Rxd6 {[%clk 0:00:58]}  Rxd6 {[%clk 0:00:45]} 33. Rxd6 {[%clk 0:00:58]}  Rb8 {[%clk 0:00:30]} 34. Qe6+ {[%clk 0:00:47]}  Qxe6 {[%clk 0:00:25]} 35. Rxe6 {[%clk 0:00:48]}  Rxb3 {[%clk 0:00:26]} 36. Re3 {[%clk 0:00:38]}  Rb4 {[%clk 0:00:25]} 37. Rxf3 {[%clk 0:00:36]}  Rxc4 {[%clk 0:00:25]} 38. Rf5 {[%clk 0:00:36]}  Rxa4 {[%clk 0:00:23]} 39. Rxh5 {[%clk 0:00:33]}  Kf7 {[%clk 0:00:19]} 40. Rc5 {[%clk 0:00:32]}  Ra6 {[%clk 0:00:18]} 41. h5 {[%clk 0:00:31]}  Ke6 {[%clk 0:00:13]} 42. Kg2 {[%clk 0:00:30]}  Kd6 {[%clk 0:00:11]} 43. Rg5 {[%clk 0:00:30]}  Rb6 {[%clk 0:00:07]} 44. Rxg7 {[%clk 0:00:29]}  a5 {[%clk 0:00:07]} 45. h6 {[%clk 0:00:29]}  Rb8 {[%clk 0:00:06]} 46. Ra7 {[%clk 0:00:27]}  Rh8 {[%clk 0:00:06]} 47. h7 {[%clk 0:00:23]}  a4 {[%clk 0:00:06]} 48. g4 {[%clk 0:00:21]}  Ke5 {[%clk 0:00:06]} 49. Kg3 {[%clk 0:00:18]}  a3 {[%clk 0:00:05]} 50. f4+ {[%clk 0:00:17]}  Ke4 {[%clk 0:00:04]} 51. g5 {[%clk 0:00:17]}  a2 {[%clk 0:00:03]} 52. g6 {[%clk 0:00:16]}  a1=Q {[%clk 0:00:02]} 53. Rxa1 {[%clk 0:00:15]}  Rd8 {[%clk 0:00:02]} 54. g7 {[%clk 0:00:14]}  Rd3+ {[%clk 0:00:03]} 55. Kg4 {[%clk 0:00:14]}  Ke3 {[%clk 0:00:03]} 56. g8=Q {[%clk 0:00:12]}  Kf2 {[%clk 0:00:04]} 1-0


[Site "https://www.chess.com"]

[Event "Titled Tuesday Blitz April 19 Late 2022"]
[White "Perrine, Dalton"]
[Black "Sarkar, Justin"]
[WhiteFideId "2048434"]
[BlackFideId "2010011"]
[WhiteElo "2486"]
[BlackElo "2391"]
[Result "0-1"]
[Round "11"]
[TimeControl "180+1"]
[Date "2022.04.19"]
[WhiteClock "0:00:06"]
[BlackClock "0:00:03"]

1. Nf3 {[%clk 0:02:58]}  e6 {[%clk 0:02:52]} 2. g3 {[%clk 0:02:48]}  f5 {[%clk 0:02:47]} 3. Bg2 {[%clk 0:02:44]}  Nf6 {[%clk 0:02:46]} 4. O-O {[%clk 0:02:45]}  Be7 {[%clk 0:02:40]} 5. d3 {[%clk 0:02:39]}  O-O {[%clk 0:02:37]} 6. c4 {[%clk 0:02:38]}  d6 {[%clk 0:02:25]} 7. Nc3 {[%clk 0:02:33]}  Qe8 {[%clk 0:02:21]} 8. d4 {[%clk 0:02:32]}  Ne4 {[%clk 0:02:02]} 9. Nxe4 {[%clk 0:02:15]}  fxe4 {[%clk 0:02:02]} 10. Ne1 {[%clk 0:02:16]}  d5 {[%clk 0:01:55]} 11. cxd5 {[%clk 0:02:15]}  exd5 {[%clk 0:01:54]} 12. Qb3 {[%clk 0:02:16]}  Qf7 {[%clk 0:01:50]} 13. f3 {[%clk 0:02:08]}  exf3 {[%clk 0:01:13]} 14. Rxf3 {[%clk 0:01:20]}  Bf6 {[%clk 0:01:11]} 15. Bg5 {[%clk 0:01:20]}  c6 {[%clk 0:01:04]} 16. Bxf6 {[%clk 0:01:19]}  gxf6 {[%clk 0:01:05]} 17. Nc2 {[%clk 0:00:58]}  Nd7 {[%clk 0:00:46]} 18. Raf1 {[%clk 0:00:50]}  Nb6 {[%clk 0:00:29]} 19. Rxf6 {[%clk 0:00:38]}  Qxf6 {[%clk 0:00:30]} 20. Rxf6 {[%clk 0:00:38]}  Rxf6 {[%clk 0:00:30]} 21. e4 {[%clk 0:00:39]}  Be6 {[%clk 0:00:20]} 22. exd5 {[%clk 0:00:23]}  Bxd5 {[%clk 0:00:17]} 23. Bxd5+ {[%clk 0:00:23]}  cxd5 {[%clk 0:00:17]} 24. Ne3 {[%clk 0:00:23]}  Rd8 {[%clk 0:00:12]} 25. Ng4 {[%clk 0:00:22]}  Rg6 {[%clk 0:00:10]} 26. Ne5 {[%clk 0:00:18]}  Rg7 {[%clk 0:00:10]} 27. a4 {[%clk 0:00:18]}  Nc8 {[%clk 0:00:06]} 28. a5 {[%clk 0:00:15]}  b6 {[%clk 0:00:05]} 29. a6 {[%clk 0:00:13]}  Ne7 {[%clk 0:00:04]} 30. Kg2 {[%clk 0:00:07]}  Nf5 {[%clk 0:00:05]} 31. Qd3 {[%clk 0:00:07]}  Rf8 {[%clk 0:00:04]} 32. b4 {[%clk 0:00:03]}  Nh4+ {[%clk 0:00:04]} 33. Kg1 {[%clk 0:00:03]}  Nf5 {[%clk 0:00:04]} 34. b5 {[%clk 0:00:03]}  Re7 {[%clk 0:00:03]} 35. Kg2 {[%clk 0:00:03]}  Nd6 {[%clk 0:00:03]} 36. Nc6 {[%clk 0:00:02]}  Ref7 {[%clk 0:00:03]} 37. Qc3 {[%clk 0:00:02]}  Ne4 {[%clk 0:00:02]} 38. Kh3 {[%clk 0:00:03]}  Nxc3 {[%clk 0:00:02]} 39. Ne5 {[%clk 0:00:04]}  Nxb5 {[%clk 0:00:02]} 40. Nc6 {[%clk 0:00:03]}  Nxd4 {[%clk 0:00:02]} 41. Nxd4 {[%clk 0:00:04]}  Rd7 {[%clk 0:00:01]} 42. Nc6 {[%clk 0:00:04]}  Rc8 {[%clk 0:00:02]} 43. Ne5 {[%clk 0:00:04]}  Rcc7 {[%clk 0:00:02]} 44. Nd3 {[%clk 0:00:04]}  d4 {[%clk 0:00:02]} 45. Kg4 {[%clk 0:00:04]}  Rc3 {[%clk 0:00:02]} 46. Nf4 {[%clk 0:00:04]}  Rg7+ {[%clk 0:00:02]} 47. Kf5 {[%clk 0:00:05]}  d3 {[%clk 0:00:02]} 48. Nd5 {[%clk 0:00:04]}  Rc5 {[%clk 0:00:02]} 49. Ke4 {[%clk 0:00:05]}  Rxd5 {[%clk 0:00:02]} 50. Ke3 {[%clk 0:00:06]}  d2 {[%clk 0:00:03]} 0-1


[Site "https://www.chess.com"]

[Event "Titled Tuesday Blitz April 19 Late 2022"]
[White "Rytenko, Vsevolod"]
[Black "Zhao, Jun"]
[WhiteFideId "14133040"]
[BlackFideId "8602522"]
[WhiteElo "2120"]
[BlackElo "2547"]
[Result "0-1"]
[Round "11"]
[TimeControl "180+1"]
[Date "2022.04.19"]
[WhiteClock "0:01:40"]
[BlackClock "0:01:50"]

1. d4 {[%clk 0:03:00]}  Nf6 {[%clk 0:02:57]} 2. Bg5 {[%clk 0:03:00]}  d5 {[%clk 0:02:56]} 3. Bxf6 {[%clk 0:03:00]}  exf6 {[%clk 0:02:56]} 4. g3 {[%clk 0:03:01]}  Bd6 {[%clk 0:02:53]} 5. Bg2 {[%clk 0:03:02]}  c6 {[%clk 0:02:53]} 6. e3 {[%clk 0:03:02]}  O-O {[%clk 0:02:53]} 7. Ne2 {[%clk 0:03:03]}  Nd7 {[%clk 0:02:52]} 8. O-O {[%clk 0:03:03]}  f5 {[%clk 0:02:53]} 9. Nd2 {[%clk 0:03:04]}  Nf6 {[%clk 0:02:53]} 10. c4 {[%clk 0:03:04]}  Be6 {[%clk 0:02:50]} 11. Qc2 {[%clk 0:03:03]}  Re8 {[%clk 0:02:50]} 12. Rab1 {[%clk 0:02:59]}  a5 {[%clk 0:02:49]} 13. c5 {[%clk 0:02:52]}  Bc7 {[%clk 0:02:48]} 14. a3 {[%clk 0:02:52]}  h5 {[%clk 0:02:45]} 15. b4 {[%clk 0:02:50]}  axb4 {[%clk 0:02:40]} 16. axb4 {[%clk 0:02:51]}  Bd7 {[%clk 0:02:34]} 17. b5 {[%clk 0:02:49]}  h4 {[%clk 0:02:29]} 18. Nf3 {[%clk 0:02:37]}  hxg3 {[%clk 0:02:27]} 19. hxg3 {[%clk 0:02:37]}  Ne4 {[%clk 0:02:25]} 20. bxc6 {[%clk 0:02:36]}  bxc6 {[%clk 0:02:16]} 21. Rb7 {[%clk 0:02:28]}  Bc8 {[%clk 0:02:16]} 22. Rb2 {[%clk 0:02:25]}  Ba6 {[%clk 0:02:16]} 23. Rfb1 {[%clk 0:02:23]}  Bxe2 {[%clk 0:02:15]} 24. Qxe2 {[%clk 0:02:23]}  Nc3 {[%clk 0:02:15]} 25. Qd3 {[%clk 0:02:23]}  Nxb1 {[%clk 0:02:15]} 26. Qxb1 {[%clk 0:02:12]}  g6 {[%clk 0:02:14]} 27. Ne1 {[%clk 0:02:08]}  Rb8 {[%clk 0:02:11]} 28. Nd3 {[%clk 0:02:07]}  Rxb2 {[%clk 0:02:12]} 29. Qxb2 {[%clk 0:02:08]}  Qb8 {[%clk 0:02:09]} 30. Qc2 {[%clk 0:01:53]}  Qb5 {[%clk 0:02:08]} 31. Bf1 {[%clk 0:01:54]}  Qb7 {[%clk 0:01:59]} 32. Qc3 {[%clk 0:01:39]}  Rb8 {[%clk 0:01:57]} 33. Qb4 {[%clk 0:01:40]}  Qxb4 {[%clk 0:01:50]} 0-1


[Site "https://www.chess.com"]

[Event "Titled Tuesday Blitz April 19 Late 2022"]
[White "Schekachikhin, Maksim"]
[Black "Leiva, Gianmarco"]
[WhiteFideId "24177830"]
[BlackFideId "3804399"]
[WhiteElo "2230"]
[BlackElo "2323"]
[Result "0-1"]
[Round "11"]
[TimeControl "180+1"]
[Date "2022.04.19"]
[WhiteClock "0:01:01"]
[BlackClock "0:00:03"]

1. d4 {[%clk 0:03:00]}  Nf6 {[%clk 0:02:42]} 2. c4 {[%clk 0:03:01]}  e6 {[%clk 0:02:43]} 3. Nc3 {[%clk 0:03:01]}  Bb4 {[%clk 0:02:42]} 4. e3 {[%clk 0:03:01]}  O-O {[%clk 0:02:36]} 5. Bd3 {[%clk 0:03:01]}  d5 {[%clk 0:02:33]} 6. Nf3 {[%clk 0:03:01]}  dxc4 {[%clk 0:02:31]} 7. Bxc4 {[%clk 0:03:01]}  c5 {[%clk 0:02:31]} 8. O-O {[%clk 0:03:00]}  cxd4 {[%clk 0:02:30]} 9. exd4 {[%clk 0:03:00]}  b6 {[%clk 0:02:30]} 10. Bg5 {[%clk 0:03:00]}  Bb7 {[%clk 0:02:31]} 11. Qe2 {[%clk 0:02:58]}  Nbd7 {[%clk 0:02:29]} 12. Ne5 {[%clk 0:02:55]}  Bxc3 {[%clk 0:01:23]} 13. bxc3 {[%clk 0:02:53]}  Qc7 {[%clk 0:01:21]} 14. Nxd7 {[%clk 0:02:28]}  Nxd7 {[%clk 0:01:20]} 15. Rac1 {[%clk 0:02:23]}  Qc6 {[%clk 0:01:14]} 16. f4 {[%clk 0:02:20]}  h6 {[%clk 0:00:59]} 17. Bh4 {[%clk 0:02:19]}  Rfe8 {[%clk 0:00:55]} 18. Bd3 {[%clk 0:02:14]}  Nf6 {[%clk 0:00:42]} 19. Bxf6 {[%clk 0:01:56]}  gxf6 {[%clk 0:00:42]} 20. Qg4+ {[%clk 0:01:56]}  Kf8 {[%clk 0:00:43]} 21. Rc2 {[%clk 0:01:52]}  Ke7 {[%clk 0:00:42]} 22. Re1 {[%clk 0:01:49]}  Rg8 {[%clk 0:00:39]} 23. Qh3 {[%clk 0:01:48]}  Rg7 {[%clk 0:00:03]} 24. f5 {[%clk 0:01:42]}  Rag8 {[%clk 0:00:02]} 25. Be4 {[%clk 0:01:39]}  Qxe4 {[%clk 0:00:02]} 26. Rxe4 {[%clk 0:01:36]}  Bxe4 {[%clk 0:00:03]} 27. Re2 {[%clk 0:01:28]}  Bxg2 {[%clk 0:00:03]} 28. Rxg2 {[%clk 0:01:05]}  Rxg2+ {[%clk 0:00:03]} 29. Qxg2 {[%clk 0:01:06]}  Rxg2+ {[%clk 0:00:03]} 30. Kxg2 {[%clk 0:01:07]}  e5 {[%clk 0:00:02]} 31. Kf3 {[%clk 0:01:03]}  exd4 {[%clk 0:00:02]} 32. cxd4 {[%clk 0:01:02]}  Kd6 {[%clk 0:00:03]} 33. Ke4 {[%clk 0:01:03]}  b5 {[%clk 0:00:03]} 34. d5 {[%clk 0:01:02]}  Kc5 {[%clk 0:00:03]} 35. h4 {[%clk 0:01:01]}  h5 {[%clk 0:00:03]} 36. a3 {[%clk 0:01:01]}  a5 {[%clk 0:00:03]} 0-1


[Site "https://www.chess.com"]

[Event "Titled Tuesday Blitz April 19 Late 2022"]
[White "Sernecki, Franciszek"]
[Black "Kazakouski, Valery"]
[WhiteFideId "1169297"]
[BlackFideId "13507443"]
[WhiteElo "2165"]
[BlackElo "2524"]
[Result "0-1"]
[Round "11"]
[TimeControl "180+1"]
[Date "2022.04.19"]
[WhiteClock "0:00:03"]
[BlackClock "0:00:25"]

1. d4 {[%clk 0:02:49]}  Nf6 {[%clk 0:02:59]} 2. c4 {[%clk 0:02:49]}  e6 {[%clk 0:02:59]} 3. Nf3 {[%clk 0:02:49]}  d5 {[%clk 0:02:59]} 4. Nc3 {[%clk 0:02:49]}  a6 {[%clk 0:02:59]} 5. cxd5 {[%clk 0:02:46]}  exd5 {[%clk 0:03:00]} 6. Bg5 {[%clk 0:02:44]}  Be6 {[%clk 0:03:00]} 7. e3 {[%clk 0:02:44]}  Nbd7 {[%clk 0:03:00]} 8. Bd3 {[%clk 0:02:43]}  Bd6 {[%clk 0:03:00]} 9. O-O {[%clk 0:02:43]}  h6 {[%clk 0:02:59]} 10. Bf4 {[%clk 0:02:41]}  Qe7 {[%clk 0:02:59]} 11. Qc2 {[%clk 0:02:39]}  O-O {[%clk 0:02:58]} 12. Rfe1 {[%clk 0:02:31]}  Rfe8 {[%clk 0:02:57]} 13. h3 {[%clk 0:02:18]}  c6 {[%clk 0:02:54]} 14. a3 {[%clk 0:02:17]}  a5 {[%clk 0:02:53]} 15. Rad1 {[%clk 0:02:11]}  g5 {[%clk 0:02:36]} 16. Bxd6 {[%clk 0:02:07]}  Qxd6 {[%clk 0:02:37]} 17. Bf5 {[%clk 0:02:07]}  Kg7 {[%clk 0:02:33]} 18. Ne2 {[%clk 0:01:59]}  Bxf5 {[%clk 0:02:29]} 19. Qxf5 {[%clk 0:01:56]}  Ne4 {[%clk 0:02:30]} 20. h4 {[%clk 0:01:45]}  Qe6 {[%clk 0:02:24]} 21. Qxe6 {[%clk 0:01:34]}  Rxe6 {[%clk 0:02:25]} 22. hxg5 {[%clk 0:01:25]}  hxg5 {[%clk 0:02:26]} 23. Nc3 {[%clk 0:01:25]}  Ndf6 {[%clk 0:02:14]} 24. Nxe4 {[%clk 0:01:21]}  Nxe4 {[%clk 0:02:15]} 25. Nd2 {[%clk 0:01:20]}  Nd6 {[%clk 0:02:15]} 26. g3 {[%clk 0:01:12]}  Rh8 {[%clk 0:02:04]} 27. Kg2 {[%clk 0:01:10]}  Reh6 {[%clk 0:02:04]} 28. Rh1 {[%clk 0:01:07]}  Rxh1 {[%clk 0:02:03]} 29. Rxh1 {[%clk 0:01:08]}  Rxh1 {[%clk 0:02:04]} 30. Kxh1 {[%clk 0:01:09]}  Kg6 {[%clk 0:02:04]} 31. Kg2 {[%clk 0:01:08]}  Kf5 {[%clk 0:02:05]} 32. Kf3 {[%clk 0:01:04]}  g4+ {[%clk 0:01:58]} 33. Ke2 {[%clk 0:01:04]}  a4 {[%clk 0:01:58]} 34. Kd3 {[%clk 0:01:03]}  b6 {[%clk 0:01:52]} 35. Nb1 {[%clk 0:00:47]}  Nc4 {[%clk 0:01:47]} 36. Nc3 {[%clk 0:00:41]}  Nxb2+ {[%clk 0:01:42]} 37. Kc2 {[%clk 0:00:37]}  Nc4 {[%clk 0:01:42]} 38. Nxa4 {[%clk 0:00:37]}  Nxa3+ {[%clk 0:01:43]} 39. Kd3 {[%clk 0:00:34]}  Nc4 {[%clk 0:01:41]} 40. Nc3 {[%clk 0:00:29]}  Ke6 {[%clk 0:01:41]} 41. e4 {[%clk 0:00:21]}  f6 {[%clk 0:01:24]} 42. Ne2 {[%clk 0:00:17]}  b5 {[%clk 0:01:04]} 43. Nf4+ {[%clk 0:00:14]}  Kd6 {[%clk 0:01:04]} 44. exd5 {[%clk 0:00:14]}  cxd5 {[%clk 0:01:05]} 45. Nh5 {[%clk 0:00:14]}  Ke7 {[%clk 0:00:52]} 46. Nf4 {[%clk 0:00:14]}  Nb6 {[%clk 0:00:52]} 47. Kc3 {[%clk 0:00:10]}  Kd6 {[%clk 0:00:51]} 48. Kb4 {[%clk 0:00:06]}  Kc6 {[%clk 0:00:51]} 49. Nh5 {[%clk 0:00:06]}  Nd7 {[%clk 0:00:51]} 50. Ng7 {[%clk 0:00:05]}  Nf8 {[%clk 0:00:50]} 51. Ne8 {[%clk 0:00:04]}  Nh7 {[%clk 0:00:38]} 52. Ng7 {[%clk 0:00:04]}  Ng5 {[%clk 0:00:38]} 53. Nf5 {[%clk 0:00:04]}  Nh3 {[%clk 0:00:35]} 54. Ne7+ {[%clk 0:00:03]}  Kd6 {[%clk 0:00:35]} 55. Nf5+ {[%clk 0:00:03]}  Ke6 {[%clk 0:00:33]} 56. Ne3 {[%clk 0:00:02]}  Nxf2 {[%clk 0:00:33]} 57. Kxb5 {[%clk 0:00:02]}  f5 {[%clk 0:00:34]} 58. Kc5 {[%clk 0:00:02]}  Ne4+ {[%clk 0:00:34]} 59. Kc6 {[%clk 0:00:02]}  Nxg3 {[%clk 0:00:33]} 60. Nxd5 {[%clk 0:00:03]}  Ne4 {[%clk 0:00:25]} 61. Nf4+ {[%clk 0:00:03]}  Kf6 {[%clk 0:00:25]} 0-1


[Site "https://www.chess.com"]

[Event "Titled Tuesday Blitz April 19 Late 2022"]
[White "Shimanov, Aleksandr"]
[Black "Sowa, Ryan"]
[WhiteFideId "4198603"]
[BlackFideId "30901693"]
[WhiteElo "2636"]
[BlackElo "2633"]
[Result "1-0"]
[Round "11"]
[TimeControl "180+1"]
[Date "2022.04.19"]
[WhiteClock "0:00:32"]
[BlackClock "0:00:09"]

1. b3 {[%clk 0:03:00]}  Nf6 {[%clk 0:02:58]} 2. Bb2 {[%clk 0:03:00]}  g6 {[%clk 0:02:59]} 3. g3 {[%clk 0:03:00]}  Bg7 {[%clk 0:02:59]} 4. Nf3 {[%clk 0:03:00]}  O-O {[%clk 0:02:59]} 5. Bg2 {[%clk 0:03:00]}  c5 {[%clk 0:02:59]} 6. O-O {[%clk 0:02:56]}  Nc6 {[%clk 0:02:59]} 7. c4 {[%clk 0:02:56]}  d6 {[%clk 0:02:47]} 8. d4 {[%clk 0:02:55]}  cxd4 {[%clk 0:02:47]} 9. Nxd4 {[%clk 0:02:56]}  Bd7 {[%clk 0:02:47]} 10. Nc3 {[%clk 0:02:56]}  Nxd4 {[%clk 0:02:42]} 11. Qxd4 {[%clk 0:02:56]}  Bc6 {[%clk 0:02:42]} 12. Nd5 {[%clk 0:02:48]}  Bxd5 {[%clk 0:02:36]} 13. Bxd5 {[%clk 0:02:48]}  Nh5 {[%clk 0:02:23]} 14. Qd2 {[%clk 0:02:47]}  Bxb2 {[%clk 0:02:24]} 15. Qxb2 {[%clk 0:02:47]}  Qc7 {[%clk 0:02:21]} 16. Rac1 {[%clk 0:02:46]}  Nf6 {[%clk 0:02:20]} 17. Bf3 {[%clk 0:02:46]}  Rab8 {[%clk 0:02:12]} 18. h4 {[%clk 0:02:44]}  h5 {[%clk 0:02:11]} 19. Rfd1 {[%clk 0:02:44]}  b6 {[%clk 0:02:11]} 20. b4 {[%clk 0:02:39]}  a5 {[%clk 0:02:09]} 21. a3 {[%clk 0:02:37]}  Rfc8 {[%clk 0:02:06]} 22. Qd4 {[%clk 0:02:31]}  Qa7 {[%clk 0:01:55]} 23. Ra1 {[%clk 0:02:19]}  Rc7 {[%clk 0:01:55]} 24. b5 {[%clk 0:02:08]}  Rbc8 {[%clk 0:01:42]} 25. Bc6 {[%clk 0:01:53]}  Nd7 {[%clk 0:01:43]} 26. f4 {[%clk 0:01:50]}  Nb8 {[%clk 0:01:42]} 27. Bd5 {[%clk 0:01:50]}  e6 {[%clk 0:01:33]} 28. Bf3 {[%clk 0:01:49]}  Rxc4 {[%clk 0:01:32]} 29. Qxd6 {[%clk 0:01:49]}  R4c7 {[%clk 0:01:12]} 30. Ra2 {[%clk 0:01:39]}  Nd7 {[%clk 0:01:12]} 31. Rad2 {[%clk 0:01:39]}  Nc5 {[%clk 0:01:09]} 32. Qe5 {[%clk 0:01:37]}  Re7 {[%clk 0:01:04]} 33. Bc6 {[%clk 0:01:32]}  Qc7 {[%clk 0:01:00]} 34. Qf6 {[%clk 0:01:30]}  Rf8 {[%clk 0:00:44]} 35. Kh2 {[%clk 0:01:18]}  a4 {[%clk 0:00:38]} 36. Rd6 {[%clk 0:01:10]}  Kh7 {[%clk 0:00:38]} 37. e4 {[%clk 0:01:01]}  Kg8 {[%clk 0:00:35]} 38. e5 {[%clk 0:01:01]}  Kh7 {[%clk 0:00:29]} 39. Kh3 {[%clk 0:01:00]}  Kg8 {[%clk 0:00:29]} 40. g4 {[%clk 0:01:00]}  hxg4+ {[%clk 0:00:29]} 41. Kxg4 {[%clk 0:01:01]}  Kh7 {[%clk 0:00:21]} 42. Kg5 {[%clk 0:00:58]}  Rg8 {[%clk 0:00:21]} 43. Kg4 {[%clk 0:00:55]}  Nb7 {[%clk 0:00:19]} 44. Rd7 {[%clk 0:00:54]}  Rxd7 {[%clk 0:00:17]} 45. Rxd7 {[%clk 0:00:53]}  Qxd7 {[%clk 0:00:18]} 46. Bxd7 {[%clk 0:00:53]}  Rg7 {[%clk 0:00:16]} 47. Bc6 {[%clk 0:00:50]}  Nc5 {[%clk 0:00:16]} 48. Qd8 {[%clk 0:00:50]}  Nb3 {[%clk 0:00:13]} 49. Qxb6 {[%clk 0:00:49]}  Nd2 {[%clk 0:00:12]} 50. Qd4 {[%clk 0:00:48]}  Nb3 {[%clk 0:00:12]} 51. Qxa4 {[%clk 0:00:47]}  Na5 {[%clk 0:00:12]} 52. Kh3 {[%clk 0:00:44]}  Nb7 {[%clk 0:00:11]} 53. Bh1 {[%clk 0:00:42]}  Rg8 {[%clk 0:00:10]} 54. Qa7 {[%clk 0:00:40]}  Ra8 {[%clk 0:00:11]} 55. Qxa8 {[%clk 0:00:37]}  Kg7 {[%clk 0:00:10]} 56. Qxb7 {[%clk 0:00:37]}  Kh7 {[%clk 0:00:11]} 57. Qxf7+ {[%clk 0:00:36]}  Kh6 {[%clk 0:00:11]} 58. Bf3 {[%clk 0:00:32]}  g5 {[%clk 0:00:09]} 59. fxg5# {[%clk 0:00:32]} 1-0


[Site "https://www.chess.com"]

[Event "Titled Tuesday Blitz April 19 Late 2022"]
[White "Sjugirov, Sanan"]
[Black "Kosteniuk, Alexandra"]
[WhiteFideId "4189302"]
[BlackFideId "4128125"]
[WhiteElo "2602"]
[BlackElo "2469"]
[Result "1-0"]
[Round "11"]
[TimeControl "180+1"]
[Date "2022.04.19"]
[WhiteClock "0:01:07"]
[BlackClock "0:00:24"]

1. d4 {[%clk 0:03:00]}  Nf6 {[%clk 0:02:59]} 2. Nf3 {[%clk 0:03:01]}  d5 {[%clk 0:02:59]} 3. Bf4 {[%clk 0:03:02]}  c5 {[%clk 0:02:58]} 4. e3 {[%clk 0:03:02]}  Nc6 {[%clk 0:02:58]} 5. Nbd2 {[%clk 0:03:03]}  cxd4 {[%clk 0:02:57]} 6. exd4 {[%clk 0:03:03]}  Bf5 {[%clk 0:02:57]} 7. c3 {[%clk 0:03:02]}  a6 {[%clk 0:02:53]} 8. Nh4 {[%clk 0:02:52]}  Bg4 {[%clk 0:02:50]} 9. Qb3 {[%clk 0:02:50]}  Na5 {[%clk 0:02:46]} 10. Qc2 {[%clk 0:02:43]}  h6 {[%clk 0:02:33]} 11. h3 {[%clk 0:02:26]}  Bd7 {[%clk 0:02:33]} 12. Nhf3 {[%clk 0:02:24]}  g5 {[%clk 0:02:23]} 13. Bh2 {[%clk 0:02:24]}  Bg7 {[%clk 0:02:22]} 14. Bd3 {[%clk 0:02:24]}  Rc8 {[%clk 0:02:19]} 15. O-O {[%clk 0:02:22]}  Nc6 {[%clk 0:02:18]} 16. Qd1 {[%clk 0:02:20]}  O-O {[%clk 0:02:16]} 17. Re1 {[%clk 0:02:20]}  b5 {[%clk 0:02:02]} 18. Ne5 {[%clk 0:02:17]}  Be6 {[%clk 0:01:57]} 19. Qe2 {[%clk 0:02:12]}  Nxe5 {[%clk 0:01:56]} 20. Bxe5 {[%clk 0:02:13]}  Qb6 {[%clk 0:01:48]} 21. a3 {[%clk 0:02:10]}  a5 {[%clk 0:01:47]} 22. Bxb5 {[%clk 0:02:07]}  Ne4 {[%clk 0:01:42]} 23. Bxg7 {[%clk 0:02:06]}  Kxg7 {[%clk 0:01:43]} 24. a4 {[%clk 0:01:59]}  Bf5 {[%clk 0:01:37]} 25. f3 {[%clk 0:01:50]}  Nxd2 {[%clk 0:01:37]} 26. Qxd2 {[%clk 0:01:51]}  e6 {[%clk 0:01:37]} 27. Re3 {[%clk 0:01:35]}  Rc7 {[%clk 0:01:36]} 28. Rae1 {[%clk 0:01:35]}  Bg6 {[%clk 0:01:36]} 29. Re5 {[%clk 0:01:34]}  Rd8 {[%clk 0:01:22]} 30. h4 {[%clk 0:01:31]}  gxh4 {[%clk 0:01:21]} 31. Qf4 {[%clk 0:01:31]}  Rd6 {[%clk 0:01:18]} 32. Qxh4 {[%clk 0:01:30]}  f6 {[%clk 0:01:18]} 33. R5e3 {[%clk 0:01:28]}  Re7 {[%clk 0:01:15]} 34. Kh1 {[%clk 0:01:25]}  Bf5 {[%clk 0:01:11]} 35. f4 {[%clk 0:01:21]}  Rf7 {[%clk 0:00:50]} 36. Rg3+ {[%clk 0:01:19]}  Kh7 {[%clk 0:00:46]} 37. Kh2 {[%clk 0:01:10]}  Rd8 {[%clk 0:00:45]} 38. Rh1 {[%clk 0:01:07]}  Qd6 {[%clk 0:00:29]} 39. Qxh6+ {[%clk 0:01:06]}  Kxh6 {[%clk 0:00:27]} 40. Kg1+ {[%clk 0:01:06]}  Bh3 {[%clk 0:00:24]} 41. Rhxh3# {[%clk 0:01:07]} 1-0


[Site "https://www.chess.com"]